[Event "*** Titled Tuesday Blitz"]
[Site "Chess.com"]
[Date "2021.03.09"]
[Round "3"]
[White "JiiHart"]
[Black "kidagent"]
[Result "0-1"]
[WhiteElo "2057"]
[BlackElo "2305"]
[TimeControl "180+1"]
[EndTime "10:29:21 PST"]
[Termination "kidagent won on time"]

1. e4 {[%clk 0:03:00.9]} 1... c5 {[%clk 0:02:59.7]} 2. Nf3 {[%clk 0:03:00.4]}
2... d6 {[%clk 0:03:00]} 3. d4 {[%clk 0:03:00.8]} 3... cxd4 {[%clk 0:03:00.9]}
4. Nxd4 {[%clk 0:03:01.3]} 4... Nf6 {[%clk 0:03:01.4]} 5. Nc3 {[%clk 0:03:01.4]}
5... a6 {[%clk 0:03:01.8]} 6. Bg5 {[%clk 0:03:01.4]} 6... e6 {[%clk 0:03:01.8]}
7. f4 {[%clk 0:03:01.4]} 7... Be7 {[%clk 0:03:02]} 8. Qf3 {[%clk 0:03:01.3]}
8... Qc7 {[%clk 0:03:02.2]} 9. O-O-O {[%clk 0:03:00.8]} 9... Nbd7 {[%clk
0:03:02.4]} 10. Bd3 {[%clk 0:02:58.7]} 10... b5 {[%clk 0:03:02.3]} 11. Rhe1
{[%clk 0:02:56.1]} 11... Bb7 {[%clk 0:02:53.7]} 12. a3 {[%clk 0:02:34.8]} 12...
O-O {[%clk 0:02:46.1]} 13. Qh3 {[%clk 0:02:28.7]} 13... Nc5 {[%clk 0:02:41]} 14.
e5 {[%clk 0:02:04.6]} 14... Nxd3+ {[%clk 0:02:33.5]} 15. Rxd3 {[%clk 0:02:01.9]}
15... dxe5 {[%clk 0:02:34.4]} 16. fxe5 {[%clk 0:02:01.2]} 16... Nd5 {[%clk
0:02:27.2]} 17. Bxe7 {[%clk 0:01:58.7]} 17... Qxe7 {[%clk 0:02:25.6]} 18. Rg3
{[%clk 0:01:50.1]} 18... Nxc3 {[%clk 0:01:55.9]} 19. Rxc3 {[%clk 0:01:45.4]}
19... Rac8 {[%clk 0:01:54]} 20. Rg3 {[%clk 0:01:25.8]} 20... Rfd8 {[%clk
0:01:52.5]} 21. Qg4 {[%clk 0:01:16.3]} 21... g6 {[%clk 0:01:45.2]} 22. c3 {[%clk
0:01:10.9]} 22... b4 {[%clk 0:01:31.7]} 23. axb4 {[%clk 0:01:07.5]} 23... Qxb4
{[%clk 0:01:31.4]} 24. Nc2 {[%clk 0:01:06.9]} 24... Qb6 {[%clk 0:01:21.8]} 25.
Qh4 {[%clk 0:00:53.5]} 25... Bd5 {[%clk 0:01:02.1]} 26. Rh3 {[%clk 0:00:52.1]}
26... h5 {[%clk 0:00:53.9]} 27. g4 {[%clk 0:00:46.7]} 27... Rc4 {[%clk
0:00:52.5]} 28. Ne3 {[%clk 0:00:21.1]} 28... Re4 {[%clk 0:00:49.7]} 29. Nxd5
{[%clk 0:00:19.5]} 29... Rxe1+ {[%clk 0:00:46.5]} 30. Qxe1 {[%clk 0:00:19.2]}
30... Rxd5 {[%clk 0:00:47]} 31. gxh5 {[%clk 0:00:19.1]} 31... Qa5 {[%clk
0:00:41]} 32. Re3 {[%clk 0:00:14.7]} 32... Qa1+ {[%clk 0:00:32.9]} 33. Kc2
{[%clk 0:00:15.1]} 33... Qa4+ {[%clk 0:00:33.7]} 34. Kc1 {[%clk 0:00:15.1]}
34... Qf4 {[%clk 0:00:24.4]} 35. Kc2 {[%clk 0:00:11]} 35... Qf5+ {[%clk
0:00:21.6]} 36. Kc1 {[%clk 0:00:10.2]} 36... Qxh5 {[%clk 0:00:21.8]} 37. Qe2
{[%clk 0:00:05.5]} 37... Qg5 {[%clk 0:00:19.1]} 38. Kb1 {[%clk 0:00:03.4]} 38...
Qf5+ {[%clk 0:00:17.7]} 39. Kc1 {[%clk 0:00:01.7]} 39... Ra5 {[%clk 0:00:14.5]}
0-1

[Event "*** Titled Tuesday Blitz"]
[Site "Chess.com"]
[Date "2021.03.09"]
[Round "3"]
[White "onnoelgersma"]
[Black "vlad_Sid"]
[Result "1-0"]
[WhiteElo "2401"]
[BlackElo "2559"]
[TimeControl "180+1"]
[EndTime "10:29:22 PST"]
[Termination "onnoelgersma won on time"]

1. e4 {[%clk 0:03:00.9]} 1... c6 {[%clk 0:03:00.3]} 2. Nf3 {[%clk 0:03:01.2]}
2... d5 {[%clk 0:03:01.2]} 3. Nc3 {[%clk 0:03:01.9]} 3... dxe4 {[%clk
0:02:47.6]} 4. Nxe4 {[%clk 0:03:02.8]} 4... Nf6 {[%clk 0:02:48.2]} 5. Qe2 {[%clk
0:03:01.7]} 5... Nxe4 {[%clk 0:02:48.4]} 6. Qxe4 {[%clk 0:03:02.6]} 6... Qa5
{[%clk 0:02:49.3]} 7. c3 {[%clk 0:01:47.5]} 7... Bf5 {[%clk 0:02:44.7]} 8. Qf4
{[%clk 0:01:37.9]} 8... e6 {[%clk 0:02:44.4]} 9. d4 {[%clk 0:01:37.6]} 9... Nd7
{[%clk 0:02:43.5]} 10. g3 {[%clk 0:01:36.8]} 10... Be7 {[%clk 0:02:43.3]} 11.
Bg2 {[%clk 0:01:37]} 11... O-O {[%clk 0:02:35.2]} 12. O-O {[%clk 0:01:34.2]}
12... Bg6 {[%clk 0:02:28.7]} 13. a4 {[%clk 0:01:23]} 13... Qd8 {[%clk 0:02:09]}
14. Re1 {[%clk 0:01:21.9]} 14... Nf6 {[%clk 0:02:01.7]} 15. Ne5 {[%clk
0:01:16.7]} 15... Nd5 {[%clk 0:01:57.4]} 16. Qf3 {[%clk 0:01:12.8]} 16... Rc8
{[%clk 0:01:47]} 17. h4 {[%clk 0:01:11]} 17... Bc2 {[%clk 0:01:08.6]} 18. Qe2
{[%clk 0:00:50.5]} 18... Bb3 {[%clk 0:00:48.3]} 19. Qd3 {[%clk 0:00:39]} 19...
Qa5 {[%clk 0:00:39.8]} 20. Bd2 {[%clk 0:00:29.7]} 20... Qa6 {[%clk 0:00:31]} 21.
c4 {[%clk 0:00:25]} 21... Bxc4 {[%clk 0:00:12.2]} 22. Qxc4 {[%clk 0:00:22.4]}
22... Qb6 {[%clk 0:00:11.8]} 23. Nd7 {[%clk 0:00:19.8]} 23... Qxb2 {[%clk
0:00:11.2]} 24. Nxf8 {[%clk 0:00:20.1]} 24... Qxd2 {[%clk 0:00:11.4]} 25. Nd7
{[%clk 0:00:20.2]} 25... b6 {[%clk 0:00:08]} 26. Ne5 {[%clk 0:00:18.1]} 26...
Nb4 {[%clk 0:00:02.5]} 27. Nxc6 {[%clk 0:00:14.7]} 27... Nxc6 {[%clk 0:00:01.5]}
28. Bxc6 {[%clk 0:00:14.7]} 28... Bf6 {[%clk 0:00:02.4]} 29. Rad1 {[%clk
0:00:13.4]} 29... Qb2 {[%clk 0:00:02.4]} 30. d5 {[%clk 0:00:12.8]} 30... exd5
{[%clk 0:00:03.3]} 31. Qxd5 {[%clk 0:00:13.5]} 31... g6 {[%clk 0:00:03.5]} 32.
Be8 {[%clk 0:00:13.1]} 32... Kg7 {[%clk 0:00:03.4]} 33. Qxf7+ {[%clk 0:00:12.9]}
33... Kh6 {[%clk 0:00:04]} 34. Qf8+ {[%clk 0:00:10.6]} 34... Bg7 {[%clk
0:00:04]} 35. Qf4+ {[%clk 0:00:09.7]} 35... Kh5 {[%clk 0:00:04.2]} 36. Rd5+
{[%clk 0:00:09.2]} 36... Be5 {[%clk 0:00:02.5]} 37. Rdxe5+ {[%clk 0:00:09.2]}
1-0

[Event "*** Titled Tuesday Blitz"]
[Site "Chess.com"]
[Date "2021.03.09"]
[Round "3"]
[White "ShcufNaiRolf"]
[Black "MoonlighT89"]
[Result "0-1"]
[WhiteElo "2374"]
[BlackElo "2575"]
[TimeControl "180+1"]
[EndTime "10:29:25 PST"]
[Termination "MoonlighT89 won on time"]

1. e4 {[%clk 0:03:00.9]} 1... c5 {[%clk 0:02:59.9]} 2. Nf3 {[%clk 0:02:59.2]}
2... e6 {[%clk 0:03:00.5]} 3. g3 {[%clk 0:02:58.9]} 3... Nc6 {[%clk 0:03:00.4]}
4. Bg2 {[%clk 0:02:58.7]} 4... Nf6 {[%clk 0:02:51.2]} 5. Qe2 {[%clk 0:02:54.5]}
5... e5 {[%clk 0:02:49.3]} 6. O-O {[%clk 0:02:52.9]} 6... Be7 {[%clk 0:02:49.2]}
7. c3 {[%clk 0:02:33.8]} 7... O-O {[%clk 0:02:48.3]} 8. Rd1 {[%clk 0:02:28.6]}
8... d5 {[%clk 0:02:44.7]} 9. exd5 {[%clk 0:02:25]} 9... Qxd5 {[%clk 0:02:44.5]}
10. d4 {[%clk 0:01:46.1]} 10... exd4 {[%clk 0:02:21.6]} 11. Nxd4 {[%clk
0:01:42.1]} 11... Qe5 {[%clk 0:02:21.8]} 12. Qxe5 {[%clk 0:01:06.3]} 12... Nxe5
{[%clk 0:02:21.7]} 13. Nb5 {[%clk 0:00:57.9]} 13... a6 {[%clk 0:01:42.8]} 14.
Nc7 {[%clk 0:00:55.9]} 14... Ra7 {[%clk 0:01:42.8]} 15. Bf4 {[%clk 0:00:48.8]}
15... Ng6 {[%clk 0:01:43]} 16. Bg5 {[%clk 0:00:48]} 16... Bg4 {[%clk 0:01:36.2]}
17. f3 {[%clk 0:00:41.9]} 17... Bf5 {[%clk 0:01:35.9]} 18. Bxf6 {[%clk
0:00:41.8]} 18... Bxf6 {[%clk 0:01:36]} 19. Nd5 {[%clk 0:00:42.3]} 19... Bd8
{[%clk 0:01:16.5]} 20. Nd2 {[%clk 0:00:41.7]} 20... b5 {[%clk 0:01:15.1]} 21.
Nb3 {[%clk 0:00:35.4]} 21... c4 {[%clk 0:01:07.5]} 22. Nd4 {[%clk 0:00:31.7]}
22... Bd7 {[%clk 0:01:02.7]} 23. f4 {[%clk 0:00:24]} 23... Ne7 {[%clk
0:00:55.9]} 24. Nxe7+ {[%clk 0:00:09.9]} 24... Bxe7 {[%clk 0:00:56.8]} 25. Kf1
{[%clk 0:00:09.8]} 25... Bc5 {[%clk 0:00:47.3]} 26. Nc6 {[%clk 0:00:07.3]} 26...
Rc7 {[%clk 0:00:44.8]} 27. Ne5 {[%clk 0:00:07.4]} 27... Bc8 {[%clk 0:00:40]} 28.
Rd2 {[%clk 0:00:06.6]} 28... f6 {[%clk 0:00:30.4]} 29. Nc6 {[%clk 0:00:06.9]}
29... Bb7 {[%clk 0:00:26.1]} 30. Nb4 {[%clk 0:00:05]} 30... Bxg2+ {[%clk
0:00:22.6]} 31. Kxg2 {[%clk 0:00:05.3]} 31... Bxb4 {[%clk 0:00:17.8]} 32. cxb4
{[%clk 0:00:06.2]} 32... c3 {[%clk 0:00:16.6]} 33. bxc3 {[%clk 0:00:05.1]} 33...
Rxc3 {[%clk 0:00:17.5]} 34. Re1 {[%clk 0:00:04.4]} 34... Rfc8 {[%clk 0:00:16.5]}
35. Re7 {[%clk 0:00:04.1]} 35... Rc2 {[%clk 0:00:16.8]} 36. Rde2 {[%clk
0:00:03.3]} 36... R8c4 {[%clk 0:00:13.6]} 37. a3 {[%clk 0:00:02.4]} 37... Rxe2+
{[%clk 0:00:12.8]} 38. Rxe2 {[%clk 0:00:03.3]} 38... Rc3 {[%clk 0:00:13.7]} 0-1

[Event "*** Titled Tuesday Blitz"]
[Site "Chess.com"]
[Date "2021.03.09"]
[Round "3"]
[White "Pogosian_Manvel"]
[Black "SamuelGhimpu2003"]
[Result "0-1"]
[WhiteElo "2406"]
[BlackElo "2601"]
[TimeControl "180+1"]
[EndTime "10:29:27 PST"]
[Termination "SamuelGhimpu2003 won by resignation"]

1. d4 {[%clk 0:02:57.6]} 1... Nf6 {[%clk 0:02:59.9]} 2. Nf3 {[%clk 0:02:57]}
2... g6 {[%clk 0:03:00]} 3. g3 {[%clk 0:02:50.2]} 3... Bg7 {[%clk 0:03:00.2]} 4.
Bg2 {[%clk 0:02:50.8]} 4... O-O {[%clk 0:03:01.1]} 5. O-O {[%clk 0:02:51]} 5...
d6 {[%clk 0:03:01.6]} 6. c4 {[%clk 0:02:51.5]} 6... Nc6 {[%clk 0:03:00.4]} 7.
Nc3 {[%clk 0:02:51.9]} 7... a6 {[%clk 0:02:59.9]} 8. h3 {[%clk 0:02:51.9]} 8...
Rb8 {[%clk 0:02:59.1]} 9. e4 {[%clk 0:02:52.4]} 9... Nd7 {[%clk 0:02:39.1]} 10.
Be3 {[%clk 0:02:42.2]} 10... e5 {[%clk 0:02:16.9]} 11. d5 {[%clk 0:02:41.4]}
11... Ne7 {[%clk 0:02:17.2]} 12. b4 {[%clk 0:02:36.6]} 12... h6 {[%clk
0:02:13.7]} 13. c5 {[%clk 0:02:27]} 13... f5 {[%clk 0:02:12.2]} 14. Rc1 {[%clk
0:02:20.9]} 14... f4 {[%clk 0:02:10.3]} 15. Bd2 {[%clk 0:02:14.4]} 15... g5
{[%clk 0:01:51.3]} 16. Ne1 {[%clk 0:01:57.3]} 16... Ng6 {[%clk 0:01:38.5]} 17.
Nd3 {[%clk 0:01:56.3]} 17... Nf6 {[%clk 0:01:38.6]} 18. g4 {[%clk 0:01:49.9]}
18... f3 {[%clk 0:01:37]} 19. Bxf3 {[%clk 0:01:46.8]} 19... Nh4 {[%clk
0:01:27.9]} 20. Be2 {[%clk 0:01:35.7]} 20... h5 {[%clk 0:01:17.4]} 21. f3 {[%clk
0:01:31.1]} 21... Ng6 {[%clk 0:01:18]} 22. Bxg5 {[%clk 0:01:24.9]} 22... Qe8
{[%clk 0:01:11.7]} 23. Qd2 {[%clk 0:01:17.2]} 23... Nh7 {[%clk 0:00:59.3]} 24.
Be3 {[%clk 0:01:12.4]} 24... Qe7 {[%clk 0:00:49.4]} 25. Qe1 {[%clk 0:00:53.8]}
25... Ng5 {[%clk 0:00:44.3]} 26. Qg3 {[%clk 0:00:48.1]} 26... Nf4 {[%clk
0:00:39.8]} 27. Bxf4 {[%clk 0:00:21.6]} 27... exf4 {[%clk 0:00:40.7]} 28. Qg2
{[%clk 0:00:19.1]} 28... Bd4+ {[%clk 0:00:37]} 29. Nf2 {[%clk 0:00:18]} 29...
hxg4 {[%clk 0:00:34.8]} 30. hxg4 {[%clk 0:00:15.6]} 30... Qh7 {[%clk 0:00:33.1]}
31. Rfd1 {[%clk 0:00:13.1]} 31... Nh3+ {[%clk 0:00:26.4]} 32. Kf1 {[%clk
0:00:12.1]} 32... Bxf2 {[%clk 0:00:26.7]} 33. cxd6 {[%clk 0:00:11]} 33... cxd6
{[%clk 0:00:26]} 34. e5 {[%clk 0:00:10.3]} 34... Bg3 {[%clk 0:00:13.5]} 35. Bd3
{[%clk 0:00:09.9]} 35... Qh4 {[%clk 0:00:13.4]} 36. Ne4 {[%clk 0:00:09.5]} 36...
Ng5 {[%clk 0:00:10.2]} 37. Nxd6 {[%clk 0:00:07.9]} 37... Bxg4 {[%clk 0:00:09.7]}
38. Be2 {[%clk 0:00:04.6]} 38... Bh3 {[%clk 0:00:09.7]} 0-1

[Event "*** Titled Tuesday Blitz"]
[Site "Chess.com"]
[Date "2021.03.09"]
[Round "3"]
[White "Korchmar_Vasiliy"]
[Black "Niktlt"]
[Result "1-0"]
[WhiteElo "2644"]
[BlackElo "2427"]
[TimeControl "180+1"]
[EndTime "10:29:29 PST"]
[Termination "Korchmar_Vasiliy won on time"]

1. d4 {[%clk 0:03:00.9]} 1... Nf6 {[%clk 0:02:59.5]} 2. Nf3 {[%clk 0:03:01]}
2... g6 {[%clk 0:02:59.4]} 3. Bg5 {[%clk 0:03:01.1]} 3... Bg7 {[%clk 0:02:59.5]}
4. Nbd2 {[%clk 0:03:01.6]} 4... O-O {[%clk 0:02:59.4]} 5. e3 {[%clk 0:03:01.2]}
5... d6 {[%clk 0:02:57.4]} 6. Bd3 {[%clk 0:03:01.2]} 6... Nbd7 {[%clk 0:02:57]}
7. O-O {[%clk 0:03:01.3]} 7... b6 {[%clk 0:02:57]} 8. c3 {[%clk 0:03:01]} 8...
Bb7 {[%clk 0:02:57.2]} 9. a4 {[%clk 0:03:01.3]} 9... a6 {[%clk 0:02:56.3]} 10.
e4 {[%clk 0:03:01.7]} 10... e5 {[%clk 0:02:56.1]} 11. Re1 {[%clk 0:03:01.4]}
11... h6 {[%clk 0:02:55]} 12. Bh4 {[%clk 0:03:01.8]} 12... g5 {[%clk 0:02:53.3]}
13. Bg3 {[%clk 0:03:02.2]} 13... Re8 {[%clk 0:02:50.7]} 14. Nc4 {[%clk
0:03:00.4]} 14... exd4 {[%clk 0:02:49]} 15. Nxd4 {[%clk 0:02:53.7]} 15... Nxe4
{[%clk 0:02:45.2]} 16. Nf5 {[%clk 0:02:52.6]} 16... Nxg3 {[%clk 0:02:42.2]} 17.
Rxe8+ {[%clk 0:02:47.8]} 17... Qxe8 {[%clk 0:02:43.1]} 18. hxg3 {[%clk
0:02:48.3]} 18... Nf6 {[%clk 0:02:39.9]} 19. Nce3 {[%clk 0:02:42.2]} 19... Bf8
{[%clk 0:02:29.2]} 20. Be2 {[%clk 0:02:08.5]} 20... Qe6 {[%clk 0:02:21.6]} 21.
Bf3 {[%clk 0:02:08.7]} 21... Bxf3 {[%clk 0:02:18.9]} 22. Qxf3 {[%clk 0:02:09.6]}
22... Re8 {[%clk 0:02:18]} 23. Nd4 {[%clk 0:01:58]} 23... Qe7 {[%clk 0:01:46]}
24. Nef5 {[%clk 0:01:38.3]} 24... Qe5 {[%clk 0:01:29.9]} 25. Qc6 {[%clk
0:01:37.3]} 25... Ng4 {[%clk 0:01:21.2]} 26. Rf1 {[%clk 0:01:34.8]} 26... Rc8
{[%clk 0:00:59.5]} 27. Qb7 {[%clk 0:01:18.3]} 27... Qe8 {[%clk 0:00:58.7]} 28.
Qxa6 {[%clk 0:01:11.8]} 28... Ra8 {[%clk 0:00:56.9]} 29. Qb7 {[%clk 0:01:10.1]}
29... Rxa4 {[%clk 0:00:18]} 30. Qxc7 {[%clk 0:01:08.1]} 30... Qe5 {[%clk
0:00:16.4]} 31. Qxb6 {[%clk 0:01:03.5]} 31... Ra2 {[%clk 0:00:16.3]} 32. Qb8
{[%clk 0:00:54.9]} 32... Ra6 {[%clk 0:00:13.7]} 33. b4 {[%clk 0:00:51.7]} 33...
Ra3 {[%clk 0:00:12.4]} 34. b5 {[%clk 0:00:44.5]} 34... Rxc3 {[%clk 0:00:11.7]}
35. Nc6 {[%clk 0:00:44.7]} 35... Qh8 {[%clk 0:00:11.6]} 36. Nce7+ {[%clk
0:00:33.7]} 36... Kh7 {[%clk 0:00:10.7]} 37. Qxd6 {[%clk 0:00:34.6]} 37... Qf6
{[%clk 0:00:05.7]} 38. Qd8 {[%clk 0:00:30.2]} 38... Qh8 {[%clk 0:00:02.4]} 39.
b6 {[%clk 0:00:26.8]} 39... Rb3 {[%clk 0:00:02.2]} 40. Qd5 {[%clk 0:00:23.2]}
40... Rxb6 {[%clk 0:00:02.1]} 41. Qxf7+ {[%clk 0:00:23.8]} 41... Bg7 {[%clk
0:00:02.4]} 42. Nxg7 {[%clk 0:00:16.7]} 1-0

[Event "*** Titled Tuesday Blitz"]
[Site "Chess.com"]
[Date "2021.03.09"]
[Round "3"]
[White "jd001"]
[Black "SharapovEvgeny"]
[Result "0-1"]
[WhiteElo "2240"]
[BlackElo "2458"]
[TimeControl "180+1"]
[EndTime "10:29:30 PST"]
[Termination "SharapovEvgeny won by resignation"]

1. d4 {[%clk 0:03:00.9]} 1... d5 {[%clk 0:02:59.1]} 2. c4 {[%clk 0:03:00.6]}
2... c6 {[%clk 0:02:58.3]} 3. cxd5 {[%clk 0:03:00.4]} 3... cxd5 {[%clk
0:02:57.6]} 4. Bf4 {[%clk 0:03:01.1]} 4... Nc6 {[%clk 0:02:55.8]} 5. e3 {[%clk
0:03:00.9]} 5... Nf6 {[%clk 0:02:55.1]} 6. Nc3 {[%clk 0:03:01]} 6... a6 {[%clk
0:02:54.7]} 7. Bd3 {[%clk 0:03:01.1]} 7... Bg4 {[%clk 0:02:52]} 8. Nge2 {[%clk
0:03:00.6]} 8... e6 {[%clk 0:02:50.1]} 9. O-O {[%clk 0:03:00.3]} 9... Be7 {[%clk
0:02:49.2]} 10. f3 {[%clk 0:03:00.4]} 10... Bh5 {[%clk 0:02:48.4]} 11. Rc1
{[%clk 0:03:00.9]} 11... O-O {[%clk 0:02:47.5]} 12. Qd2 {[%clk 0:02:55.5]} 12...
Bg6 {[%clk 0:02:45.6]} 13. Bxg6 {[%clk 0:02:54.7]} 13... hxg6 {[%clk 0:02:44.8]}
14. e4 {[%clk 0:02:51.8]} 14... dxe4 {[%clk 0:02:39.8]} 15. fxe4 {[%clk
0:02:51.3]} 15... e5 {[%clk 0:02:39.4]} 16. dxe5 {[%clk 0:02:41.5]} 16... Qxd2
{[%clk 0:02:37.9]} 17. Bxd2 {[%clk 0:02:40.8]} 17... Nxe5 {[%clk 0:02:37.8]} 18.
Bg5 {[%clk 0:02:29.2]} 18... Nd3 {[%clk 0:02:34.1]} 19. Rcd1 {[%clk 0:02:26.4]}
19... Bc5+ {[%clk 0:02:32.4]} 20. Kh1 {[%clk 0:02:22.3]} 20... Nf2+ {[%clk
0:02:32.1]} 21. Rxf2 {[%clk 0:02:21.9]} 21... Bxf2 {[%clk 0:02:31.2]} 22. Rf1
{[%clk 0:02:17.4]} 22... Ng4 {[%clk 0:02:15.9]} 23. h3 {[%clk 0:02:06.6]} 23...
Be3 {[%clk 0:02:14.4]} 24. Be7 {[%clk 0:01:58.8]} 24... Rfe8 {[%clk 0:02:09.3]}
25. Bh4 {[%clk 0:01:47.5]} 25... Ne5 {[%clk 0:02:05.5]} 26. Nd5 {[%clk
0:01:46.6]} 26... Ba7 {[%clk 0:01:50.4]} 27. Nc7 {[%clk 0:01:46.1]} 27... Rac8
{[%clk 0:01:47.3]} 28. Nxe8 {[%clk 0:01:45.9]} 28... Rxe8 {[%clk 0:01:46.6]} 29.
Rd1 {[%clk 0:01:36.7]} 29... Rc8 {[%clk 0:01:38.9]} 30. Nc3 {[%clk 0:01:33.2]}
30... f6 {[%clk 0:01:28.4]} 31. Rd2 {[%clk 0:01:17.5]} 31... Kf7 {[%clk
0:01:26.4]} 32. Kh2 {[%clk 0:01:15.5]} 32... Ke6 {[%clk 0:01:25.2]} 33. Bg3
{[%clk 0:01:15.1]} 33... Nc4 {[%clk 0:01:20.8]} 34. Re2 {[%clk 0:01:13.4]} 34...
Bd4 {[%clk 0:01:15.8]} 35. Nd1 {[%clk 0:01:09.3]} 35... Be5 {[%clk 0:01:09.6]}
36. b3 {[%clk 0:01:06.9]} 36... Bxg3+ {[%clk 0:01:05.5]} 37. Kxg3 {[%clk
0:01:06.2]} 37... Ne5 {[%clk 0:01:03.7]} 38. Nf2 {[%clk 0:00:51.3]} 38... Rc3+
{[%clk 0:01:01.4]} 39. Kh2 {[%clk 0:00:50.7]} 39... b5 {[%clk 0:00:58.5]} 40.
Rd2 {[%clk 0:00:45.3]} 40... b4 {[%clk 0:00:57]} 41. Nd1 {[%clk 0:00:32.5]}
41... Rd3 {[%clk 0:00:55]} 42. Rxd3 {[%clk 0:00:30.7]} 42... Nxd3 {[%clk
0:00:54.3]} 43. Ne3 {[%clk 0:00:24.4]} 43... Ke5 {[%clk 0:00:49.3]} 44. Nd5
{[%clk 0:00:17.3]} 44... Kxe4 {[%clk 0:00:47.7]} 45. Nc7 {[%clk 0:00:17.5]}
45... a5 {[%clk 0:00:46.2]} 46. Ne6 {[%clk 0:00:15.9]} 46... Nc1 {[%clk
0:00:44.1]} 47. Nxg7 {[%clk 0:00:15.9]} 47... Nxa2 {[%clk 0:00:43.2]} 48. Ne8
{[%clk 0:00:15.9]} 48... f5 {[%clk 0:00:40.3]} 49. Nd6+ {[%clk 0:00:15.9]} 49...
Kd5 {[%clk 0:00:34.7]} 50. Nb7 {[%clk 0:00:15.8]} 50... a4 {[%clk 0:00:34.3]}
51. bxa4 {[%clk 0:00:15.1]} 51... b3 {[%clk 0:00:34.2]} 52. Na5 {[%clk
0:00:14.3]} 52... b2 {[%clk 0:00:33.7]} 53. Nb3 {[%clk 0:00:09.2]} 53... b1=Q
{[%clk 0:00:32.3]} 0-1

[Event "*** Titled Tuesday Blitz"]
[Site "Chess.com"]
[Date "2021.03.09"]
[Round "3"]
[White "Shubinkirill2003"]
[Black "Sibelephant"]
[Result "0-1"]
[WhiteElo "2677"]
[BlackElo "3086"]
[TimeControl "180+1"]
[EndTime "10:29:31 PST"]
[Termination "Sibelephant won by resignation"]

1. e4 {[%clk 0:03:00.9]} 1... c5 {[%clk 0:02:58.6]} 2. Nf3 {[%clk 0:03:00.7]}
2... d6 {[%clk 0:02:59]} 3. Bb5+ {[%clk 0:02:57.9]} 3... Bd7 {[%clk 0:02:58]} 4.
a4 {[%clk 0:02:57]} 4... Nf6 {[%clk 0:02:57.3]} 5. Qe2 {[%clk 0:02:52.5]} 5...
Nc6 {[%clk 0:02:56.2]} 6. c3 {[%clk 0:02:50.5]} 6... a6 {[%clk 0:02:55.5]} 7.
Bd3 {[%clk 0:02:49.2]} 7... g6 {[%clk 0:02:51.2]} 8. O-O {[%clk 0:02:48.6]} 8...
Bg7 {[%clk 0:02:50.2]} 9. Bc2 {[%clk 0:02:48.2]} 9... O-O {[%clk 0:02:50.4]} 10.
h3 {[%clk 0:02:43.8]} 10... e5 {[%clk 0:02:47.6]} 11. d3 {[%clk 0:02:41.7]}
11... Nh5 {[%clk 0:02:35]} 12. Na3 {[%clk 0:02:27.5]} 12... b5 {[%clk
0:02:33.3]} 13. axb5 {[%clk 0:02:17.9]} 13... axb5 {[%clk 0:02:33.1]} 14. Bg5
{[%clk 0:02:16]} 14... Qb8 {[%clk 0:02:24.3]} 15. Qd2 {[%clk 0:02:04.3]} 15...
f6 {[%clk 0:02:19]} 16. Bh6 {[%clk 0:01:41.5]} 16... Bxh6 {[%clk 0:01:37.3]} 17.
Qxh6 {[%clk 0:01:39.3]} 17... Nf4 {[%clk 0:01:28.2]} 18. g3 {[%clk 0:01:37.9]}
18... Ne6 {[%clk 0:01:15.4]} 19. Bb3 {[%clk 0:01:26.1]} 19... Kh8 {[%clk
0:01:10.2]} 20. Nh4 {[%clk 0:01:18.9]} 20... Ne7 {[%clk 0:00:54.4]} 21. Bd5
{[%clk 0:01:04.2]} 21... Ra4 {[%clk 0:00:36.4]} 22. f4 {[%clk 0:00:50.2]} 22...
exf4 {[%clk 0:00:27.2]} 23. g4 {[%clk 0:00:44.7]} 23... Qe8 {[%clk 0:00:21.4]}
24. Nxb5 {[%clk 0:00:30.6]} 24... Rxa1 {[%clk 0:00:19.8]} 25. Rxa1 {[%clk
0:00:29.3]} 25... Ng8 {[%clk 0:00:16]} 26. Nxd6 {[%clk 0:00:19.1]} 26... Nxh6
{[%clk 0:00:15.5]} 27. Nxe8 {[%clk 0:00:18.9]} 27... Rxe8 {[%clk 0:00:16.4]} 28.
Ra7 {[%clk 0:00:17.4]} 28... Bc8 {[%clk 0:00:14.9]} 29. b4 {[%clk 0:00:14.2]}
29... cxb4 {[%clk 0:00:14.5]} 30. cxb4 {[%clk 0:00:14.5]} 30... Nd4 {[%clk
0:00:12.3]} 31. Kf2 {[%clk 0:00:12.4]} 31... Be6 {[%clk 0:00:09.3]} 32. Bc4
{[%clk 0:00:08.7]} 32... Bxc4 {[%clk 0:00:07.4]} 33. dxc4 {[%clk 0:00:08.9]}
33... Rc8 {[%clk 0:00:07.8]} 34. c5 {[%clk 0:00:07.6]} 34... Kg8 {[%clk
0:00:08.2]} 35. Nf3 {[%clk 0:00:07.1]} 35... Nc6 {[%clk 0:00:07.9]} 36. Rb7
{[%clk 0:00:06.2]} 36... Nf7 {[%clk 0:00:06.7]} 37. b5 {[%clk 0:00:03.7]} 37...
Ncd8 {[%clk 0:00:06.9]} 38. Rd7 {[%clk 0:00:02.3]} 38... Rxc5 {[%clk 0:00:07.2]}
39. b6 {[%clk 0:00:02.9]} 39... Rb5 {[%clk 0:00:07.9]} 40. b7 {[%clk 0:00:03.3]}
40... Rxb7 {[%clk 0:00:08.2]} 0-1